DepartmentFamily,Entity,Date,ExpenseType,ExpenseArea,Supplier,PaymentNumber,InvoiceDistributionAmount,InvoiceDescription,SupplierPostCode,ExpenditureType
FOOD STANDARDS AGENCY - Westminster,FOOD STANDARDS AGENCY - Westminster,2017-07-07,EXP - PURCHASE OF GOODS/SERVICES - OTHER ICT COSTS - COMPUTER SOFTWARE,IT SERVICE DELIVERY,TRUSTMARQUE SOLUTIONS LTD,1011703433,"169,691.87",MONTHLY SUBSCRIPTION FSA435 � Microsoft Enterprise Agreement Year 3,YO32 9GZ,ADMIN
FOOD STANDARDS AGENCY - Westminster,FOOD STANDARDS AGENCY - Westminster,2017-07-19,EXP - PURCHASE OF GOODS/SERVICES - OTHER - PROGRAMME EXPENDITURE,FOODBORNE DISEASE CONTROL,ANIMAL AND PLANT HEALTH AGENCY,2012700256,"120,196.94",FS101126 Campylobacter slaughterhouse monitoring 2016 has recently undergone a 3 month costed extension ,KT15 3NB,PROGRAMME
FOOD STANDARDS AGENCY - Westminster,FOOD STANDARDS AGENCY - Westminster,2017-07-14,EXP - PURCHASE OF GOODS/SERVICES - SHARED SERV OUTSRCG- CIVIL SERV PENSION ADMIN,FINANCE DIVISION,LONDON PENSIONS FUND AUTHORITY,1011703497,"118,815.00",Jul 17 - LPFA Deficit reduction payment,EC3N 4LP,ADMIN
FOOD STANDARDS AGENCY - Westminster,FOOD STANDARDS AGENCY - Westminster,2017-07-05,EXP - PURCHASE OF GOODS/SERVICES - ACCOMMODATION & BLDNG MANAGEMENT - CILOR,SECURITY & ESTATES,LONDON BOROUGH OF CAMDEN,1011703402,"118,762.00",JULY 17 CHARGES,WC1H 8NH,ADMIN
FOOD STANDARDS AGENCY - Westminster,FOOD STANDARDS AGENCY - Westminster,2017-07-20,EXP - PURCHASE OF GOODS/SERVICES - OTHER - PROGRAMME EXPENDITURE,SCIENTIFIC METHODS AND LABORATORY POLICY,PUBLIC HEALTH ENGLAND,2012700258,"101,817.79",TRAVEL AND SUBSITSTANCE,NW9 5EQ,PROGRAMME
FOOD STANDARDS AGENCY - Westminster,FOOD STANDARDS AGENCY - Westminster,2017-07-27,EXP - PURCHASE OF GOODS/SERVICES - OTHER ICT COSTS - IT DEVELOPMENT,IT STRATEGY & DEVELOPMENT,RAINMAKER SOLUTIONS LTD,1011703566,"100,716.67",Evolve IT Workpackage 3 � Overarching Management,MK18 1HD,ADMIN
FOOD STANDARDS AGENCY - Westminster,FOOD STANDARDS AGENCY - Westminster,2017-07-07,EXP - PURCHASE OF GOODS/SERVICES - OTHER ICT COSTS - COMPUTER SOFTWARE,IT SERVICE DELIVERY,TRUSTMARQUE SOLUTIONS LTD,1011703433,"78,159.12",MONTHLY SUBSCRIPTION FSA435 � Microsoft Enterprise Agreement Year 3,YO32 9GZ,ADMIN
FOOD STANDARDS AGENCY - Westminster,FOOD STANDARDS AGENCY - Westminster,2017-07-14,EXP - PURCHASE OF GOODS/SERVICES - OTHER - PROGRAMME EXPENDITURE,"RADIOLOGICAL, NOVEL FOOD & PROCESSES",C E F A S,2012700252,"71,413.35",INVOICE FOR THE PERIOD JUNE 2017,NR33 0HT,PROGRAMME
FOOD STANDARDS AGENCY - Westminster,FOOD STANDARDS AGENCY - Westminster,2017-07-27,EXP - PURCHASE OF GOODS/SERVICES - OTHER - PROGRAMME EXPENDITURE,FOODBORNE DISEASE CONTROL,PUBLIC HEALTH ENGLAND,2012700262,"57,347.30",PROJECT NUMBER FS102121,NW9 5EQ,PROGRAMME
FOOD STANDARDS AGENCY - Westminster,FOOD STANDARDS AGENCY - Westminster,2017-07-20,EXP - PURCHASE OF GOODS/SERVICES - OTHER ICT COSTS - IT DEVELOPMENT,IT STRATEGY & DEVELOPMENT,RAINMAKER SOLUTIONS LTD,1011703532,"52,772.50",MILESTONE Service Management � Workpackage 4,MK18 1HD,ADMIN
FOOD STANDARDS AGENCY - Westminster,FOOD STANDARDS AGENCY - Westminster,2017-07-10,EXP - PURCHASE OF GOODS/SERVICES - OTHER - PROGRAMME EXPENDITURE,DIGITAL,WUNDER LTD,1011703435,"49,000.00",FSA ALPHA PROJECT 01.06.2017.-30.06.2017.,N1 9AB,PROGRAMME
FOOD STANDARDS AGENCY - Westminster,FOOD STANDARDS AGENCY - Westminster,2017-07-19,EXP - PURCHASE OF GOODS/SERVICES - OTHER - PROGRAMME EXPENDITURE,"FOOD INCIDENTS AND RESILIENCE PROG
(PROG)",ANIMAL AND PLANT HEALTH AGENCY,2012700257,"44,834.01","FS1111 April 2016  31 March 2017 On-farm food Safety (Provision of services in relation to Chemical Food Safety, Surveillance and Advice) ",YO1 7PX,PROGRAMME
FOOD STANDARDS AGENCY - Westminster,FOOD STANDARDS AGENCY - Westminster,2017-07-07,EXP - SHORT-TERM CONTRACT & AGENCY STAFF - FULL COST,OPERATIONAL DELIVERY,EVILLE & JONES (UK) LTD,1011703428,"39,062.23",Field Veterinary Co-ordinator cover provided by Eville and Jones,LS15 8ZB,PROGRAMME
FOOD STANDARDS AGENCY - Westminster,FOOD STANDARDS AGENCY - Westminster,2017-07-12,EXP - PURCHASE OF GOODS/SERVICES - OTHER PROFESSIONAL SERVICES,"FOOD INCIDENTS AND RESILIENCE PROG
(PROG)",MERSEY PORT HEALTH AUTHORITY,1011703465,"37,000.00",FIGHTING FUND,L20 8LZ,PROGRAMME
FOOD STANDARDS AGENCY - Westminster,FOOD STANDARDS AGENCY - Westminster,2017-07-17,EXP - PURCHASE OF GOODS/SERVICES - OTHER ICT COSTS - COMPUTER SOFTWARE,IT STRATEGY & DEVELOPMENT,VODAFONE LTD,1011703517,"34,170.00",MANAGED SETUP Blackberry Enterprise Mobility Suites � Collaboration Edition,RG14 5FF,ADMIN
FOOD STANDARDS AGENCY - Westminster,FOOD STANDARDS AGENCY - Westminster,2017-07-07,EXP - PURCHASE OF GOODS/SERVICES - OTHER ICT COSTS - COMPUTER SOFTWARE,IT SERVICE DELIVERY,TRUSTMARQUE SOLUTIONS LTD,1011703433,"33,938.39",MONTHLY SUBSCRIPTION FSA435 � Microsoft Enterprise Agreement Year 3,YO32 9GZ,ADMIN
FOOD STANDARDS AGENCY - Westminster,FOOD STANDARDS AGENCY - Westminster,2017-07-25,EXP - PURCHASE OF GOODS/SERVICES - OTHER ENERGY/UTILITIES/WASTE COST,SECURITY & ESTATES,EDF ENERGY PLC,1011703554,"32,121.74",EDF ENERGY INVOICE 3017022 JUNE 2017,EX1 3UT,ADMIN
FOOD STANDARDS AGENCY - Westminster,FOOD STANDARDS AGENCY - Westminster,2017-07-26,EXP - PURCHASE OF GOODS/SERVICES - OTHER - PROGRAMME EXPENDITURE,ANALYSIS & RESEARCH BRANCH,MINTEL INTERNATIONAL GROUP LTD,1011703564,"26,040.00",MINTEL TRENDS,EC4V 6RN,PROGRAMME
FOOD STANDARDS AGENCY - Westminster,FOOD STANDARDS AGENCY - Westminster,2017-07-10,EXP - PURCHASE OF GOODS/SERVICES - OTHER ICT COSTS - COMPUTER SOFTWARE,"FOOD INCIDENTS AND RESILIENCE PROG
(PROG)",S A S SOFTWARE LTD,1011703440,"26,021.14",IT Supplier,SL7 2EB,PROGRAMME
FOOD STANDARDS AGENCY - Westminster,FOOD STANDARDS AGENCY - Westminster,2017-07-10,EXP - PURCHASE OF GOODS/SERV-ICT OUTSOURC&MAINT/SUPP- IT SUPPORT SERVICES,FINANCE DIVISION,SHARED SERVICES CONNECTED LTD,1011703437,"23,211.95",CHARGES BETWEEN 1JUNE  TO 30JUNE2017,HP2 7AH,ADMIN
FOOD STANDARDS AGENCY - Westminster,FOOD STANDARDS AGENCY - Westminster,2017-07-31,EXP - PURCHASE OF GOODS/SERVICES - OTHER - PROGRAMME EXPENDITURE, LOCAL DELIVERY DIVISION,C E F A S,2012700265,"22,108.68",Phytoplankton and biotoxin analysis 2017/18,NR33 0HT,PROGRAMME
FOOD STANDARDS AGENCY - Westminster,FOOD STANDARDS AGENCY - Westminster,2017-07-26,EXP - PURCHASE OF GOODS/SERVICES - OTHER - PROGRAMME EXPENDITURE, LOCAL DELIVERY DIVISION,C E F A S,2012700261,"21,076.00",C7475-MANAGMENT OF CLASSIFICATION,NR33 0HT,PROGRAMME
FOOD STANDARDS AGENCY - Westminster,FOOD STANDARDS AGENCY - Westminster,2017-07-14,EXP - PURCHASE OF GOODS/SERVICES - ACCOMM & BLDNG MGMT - SHARED SITE RECHARGE,SECURITY & ESTATES,INTERSERVE FM LTD,1011703489,"20,505.69",SERVICES,SE1 8RT,ADMIN
FOOD STANDARDS AGENCY - Westminster,FOOD STANDARDS AGENCY - Westminster,2017-07-27,EXP - PURCHASE OF GOODS/SERVICES - OTHER ICT COSTS - IT DEVELOPMENT,IT STRATEGY & DEVELOPMENT,RAINMAKER SOLUTIONS LTD,1011703566,"20,143.33",Evolve IT Workpackage 3 � Overarching Management,MK18 1HD,ADMIN
FOOD STANDARDS AGENCY - Westminster,FOOD STANDARDS AGENCY - Westminster,2017-07-14,EXP - PURCHASE OF GOODS/SERVICES - OTHER FACILTIES COSTS - SECURITY,SECURITY & ESTATES,INTERSERVE FM LTD,1011703489,"16,351.99",SERVICES Provision of FM Services in Aviation House from October 2016 to February 2018 (FSA Contract Ref. FSA 451),SE1 8RT,ADMIN
FOOD STANDARDS AGENCY - Westminster,FOOD STANDARDS AGENCY - Westminster,2017-07-07,EXP - PURCHASE OF GOODS/SERVICES - OTHER ICT COSTS - COMPUTER SOFTWARE,IT SERVICE DELIVERY,TRUSTMARQUE SOLUTIONS LTD,1011703433,"15,631.82",MONTHLY SUBSCRIPTION FSA435 � Microsoft Enterprise Agreement Year 3,YO32 9GZ,ADMIN
FOOD STANDARDS AGENCY - Westminster,FOOD STANDARDS AGENCY - Westminster,2017-07-31,EXP - PURCHASE OF GOODS/SERVICES - OTHER - PROGRAMME EXPENDITURE, LOCAL DELIVERY DIVISION,C E F A S,2012700265,"14,199.39",Shellfish Biotoxin Flesh ASP analysis,NR33 0HT,PROGRAMME
FOOD STANDARDS AGENCY - Westminster,FOOD STANDARDS AGENCY - Westminster,2017-07-14,EXP - PURCHASE OF GOODS/SERVICES - ACCOMM & BLDNG MGMT - SHARED SITE RECHARGE,SECURITY & ESTATES,INTERSERVE FM LTD,1011703489,"13,036.91",SERVICES,SE1 8RT,ADMIN
FOOD STANDARDS AGENCY - Westminster,FOOD STANDARDS AGENCY - Westminster,2017-07-31,EXP - PURCHASE OF GOODS/SERVICES - OTHER - PROGRAMME EXPENDITURE, LOCAL DELIVERY DIVISION,C E F A S,2012700265,"12,540.20",Shellfish Biotoxin Flesh ASP analysis,NR33 0HT,PROGRAMME
FOOD STANDARDS AGENCY - Westminster,FOOD STANDARDS AGENCY - Westminster,2017-07-20,EXP - PURCHASE OF GOODS/SERVICES - OTHER ICT COSTS - IT DEVELOPMENT,IT STRATEGY & DEVELOPMENT,RAINMAKER SOLUTIONS LTD,1011703532,"10,554.50",MILESTONE Service Management � Workpackage 4,MK18 1HD,ADMIN
FOOD STANDARDS AGENCY - Westminster,FOOD STANDARDS AGENCY - Westminster,2017-07-31,EXP - PURCHASE OF GOODS/SERVICES - OTHER - PROGRAMME EXPENDITURE, LOCAL DELIVERY DIVISION,C E F A S,2012700265,"9,778.42",Shellfish Biotoxin Flesh ASP analysis,NR33 0HT,PROGRAMME
FOOD STANDARDS AGENCY - Westminster,FOOD STANDARDS AGENCY - Westminster,2017-07-07,EXP - SHORT-TERM CONTRACT & AGENCY STAFF - FULL COST,OPERATIONAL DELIVERY,EVILLE & JONES (UK) LTD,1011703428,"7,812.45",Field Veterinary Co-ordinator cover provided by Eville and Jones,LS15 8ZB,PROGRAMME
FOOD STANDARDS AGENCY - Westminster,FOOD STANDARDS AGENCY - Westminster,2017-07-17,EXP - PURCHASE OF GOODS/SERVICES - OTHER ICT COSTS - COMPUTER SOFTWARE,IT STRATEGY & DEVELOPMENT,VODAFONE LTD,1011703517,"7,218.00",MANAGED SETUP Blackberry Enterprise Mobility Suites � Collaboration Edition,RG14 5FF,ADMIN
FOOD STANDARDS AGENCY - Westminster,FOOD STANDARDS AGENCY - Westminster,2017-07-14,EXP - PURCHASE OF GOODS/SERVICES - ACCOMM & BLDNG MGMT - SHARED SITE RECHARGE,SECURITY & ESTATES,INTERSERVE FM LTD,1011703489,"6,708.52",SERVICES,SE1 8RT,ADMIN
FOOD STANDARDS AGENCY - Westminster,FOOD STANDARDS AGENCY - Westminster,2017-07-25,EXP - PURCHASE OF GOODS/SERVICES - OTHER ENERGY/UTILITIES/WASTE COST,SECURITY & ESTATES,EDF ENERGY PLC,1011703554,"6,424.35",EDF ENERGY INVOICE 3017022 JUNE 2017,EX1 3UT,ADMIN
FOOD STANDARDS AGENCY - Westminster,FOOD STANDARDS AGENCY - Westminster,2017-07-10,EXP - PURCHASE OF GOODS/SERVICES - OTHER ICT COSTS - COMPUTER SOFTWARE,"FOOD INCIDENTS AND RESILIENCE PROG
(PROG)",S A S SOFTWARE LTD,1011703440,"5,204.23",IT Supplier,SL7 2EB,PROGRAMME
FOOD STANDARDS AGENCY - Westminster,FOOD STANDARDS AGENCY - Westminster,2017-07-14,EXP - PURCHASE OF GOODS/SERVICES -ACCOMM & BLDNG MGMT - MAINTENANCE & REPAIRS,SECURITY & ESTATES,INTERSERVE FM LTD,1011703489,"4,254.46",SERVICES  Provision of FM Services in Aviation House from October 2016 to February 2018 (FSA Contract Ref. FSA 451),SE1 8RT,ADMIN
FOOD STANDARDS AGENCY - Westminster,FOOD STANDARDS AGENCY - Westminster,2017-07-14,EXP - PURCHASE OF GOODS/SERVICES - OTHER FACILTIES COSTS - SECURITY,SECURITY & ESTATES,INTERSERVE FM LTD,1011703489,"3,270.40",SERVICES Provision of FM Services in Aviation House from October 2016 to February 2018 (FSA Contract Ref. FSA 451),SE1 8RT,ADMIN
FOOD STANDARDS AGENCY - Westminster,FOOD STANDARDS AGENCY - Westminster,2017-07-04,EXP - PURCHASE OF GOODS/SERVICES - RAIL TRAVEL,REGULATORY DELIVERY,REDFERN TRAVEL LTD,1011703391,"3,041.55",WEEK 26 TRAVEL EXPENSES,BD1 5HQ,ADMIN
FOOD STANDARDS AGENCY - Westminster,FOOD STANDARDS AGENCY - Westminster,2017-07-11,EXP - PURCHASE OF GOODS/SERVICES - SUBSISTENCE,OPERATIONAL DELIVERY ,REDFERN TRAVEL LTD,1011703451,"2,795.32",WEEK 27 TRAVEL EXPENSES ,BD1 1PL,PROGRAMME
FOOD STANDARDS AGENCY - Westminster,FOOD STANDARDS AGENCY - Westminster,2017-07-04,EXP - PURCHASE OF GOODS/SERVICES - RAIL TRAVEL,OPERATIONAL DELIVERY ,REDFERN TRAVEL LTD,1011703391,"2,504.30",WEEK 26 TRAVEL EXPENSES,BD1 5HQ,PROGRAMME
FOOD STANDARDS AGENCY - Westminster,FOOD STANDARDS AGENCY - Westminster,2017-07-11,EXP - PURCHASE OF GOODS/SERVICES - RAIL TRAVEL,OPERATIONAL DELIVERY ,REDFERN TRAVEL LTD,1011703451,"2,327.15",WEEK 27 TRAVEL EXPENSES ,BD1 1PL,PROGRAMME
FOOD STANDARDS AGENCY - Westminster,FOOD STANDARDS AGENCY - Westminster,2017-07-04,EXP - PURCHASE OF GOODS/SERVICES - RAIL TRAVEL,OPERATIONS ASSURANCE DIVISION (PROGRAMME),REDFERN TRAVEL LTD,1011703391,"2,099.65",WEEK 26 TRAVEL EXPENSES,BD1 5HQ,PROGRAMME
FOOD STANDARDS AGENCY - Westminster,FOOD STANDARDS AGENCY - Westminster,2017-07-11,EXP - PURCHASE OF GOODS/SERVICES - RAIL TRAVEL,OPERATIONS ASSURANCE DIVISION (PROGRAMME),REDFERN TRAVEL LTD,1011703451,"2,074.95",WEEK 27 TRAVEL EXPENSES ,BD1 1PL,PROGRAMME
FOOD STANDARDS AGENCY - Westminster,FOOD STANDARDS AGENCY - Westminster,2017-07-17,EXP - PURCHASE OF GOODS/SERVICES - OTHER ICT COSTS - COMPUTER SOFTWARE,IT STRATEGY & DEVELOPMENT,VODAFONE LTD,1011703517,"1,920.00",MANAGED SETUP Blackberry Enterprise Mobility Suites � Collaboration Edition,RG14 5FF,ADMIN
FOOD STANDARDS AGENCY - Westminster,FOOD STANDARDS AGENCY - Westminster,2017-07-04,EXP - PURCHASE OF GOODS/SERVICES - RAIL TRAVEL,REGULATING OUR FUTURE,REDFERN TRAVEL LTD,1011703391,"1,836.00",WEEK 26 TRAVEL EXPENSES,BD1 5HQ,ADMIN
FOOD STANDARDS AGENCY - Westminster,FOOD STANDARDS AGENCY - Westminster,2017-07-04,EXP - PURCHASE OF GOODS/SERVICES - RAIL TRAVEL,IT SERVICE DELIVERY,REDFERN TRAVEL LTD,1011703391,"1,734.35",WEEK 26 TRAVEL EXPENSES,BD1 5HQ,ADMIN
FOOD STANDARDS AGENCY - Westminster,FOOD STANDARDS AGENCY - Westminster,2017-07-11,EXP - PURCHASE OF GOODS/SERVICES - RAIL TRAVEL,ORGANISATIONAL DEVELOPMENT,REDFERN TRAVEL LTD,1011703451,"1,646.61",WEEK 27 TRAVEL EXPENSES ,BD1 1PL,ADMIN
FOOD STANDARDS AGENCY - Westminster,FOOD STANDARDS AGENCY - Westminster,2017-07-11,EXP - PURCHASE OF GOODS/SERVICES - RAIL TRAVEL,REGULATING OUR FUTURE,REDFERN TRAVEL LTD,1011703451,"1,601.97",WEEK 27 TRAVEL EXPENSES ,BD1 1PL,ADMIN
FOOD STANDARDS AGENCY - Westminster,FOOD STANDARDS AGENCY - Westminster,2017-07-11,EXP - PURCHASE OF GOODS/SERVICES - RAIL TRAVEL,REGULATORY DELIVERY,REDFERN TRAVEL LTD,1011703451,"1,586.20",WEEK 27 TRAVEL EXPENSES ,BD1 1PL,ADMIN
FOOD STANDARDS AGENCY - Westminster,FOOD STANDARDS AGENCY - Westminster,2017-07-11,EXP - PURCHASE OF GOODS/SERVICES - SUBSISTENCE,REGULATORY DELIVERY,REDFERN TRAVEL LTD,1011703451,"1,554.57",WEEK 27 TRAVEL EXPENSES ,BD1 1PL,ADMIN
FOOD STANDARDS AGENCY - Westminster,FOOD STANDARDS AGENCY - Westminster,2017-07-04,EXP - PURCHASE OF GOODS/SERVICES - SUBSISTENCE,REGULATING OUR FUTURE,REDFERN TRAVEL LTD,1011703391,"1,305.41",WEEK 26 TRAVEL EXPENSES,BD1 5HQ,ADMIN
FOOD STANDARDS AGENCY - Westminster,FOOD STANDARDS AGENCY - Westminster,2017-07-11,EXP - PURCHASE OF GOODS/SERVICES - RAIL TRAVEL,"PLANNING, PERFORMANCE & CHANGE",REDFERN TRAVEL LTD,1011703451,"1,274.60",WEEK 27 TRAVEL EXPENSES ,BD1 1PL,ADMIN
FOOD STANDARDS AGENCY - Westminster,FOOD STANDARDS AGENCY - Westminster,2017-07-04,EXP - PURCHASE OF GOODS/SERVICES - SUBSISTENCE,REGULATORY DELIVERY,REDFERN TRAVEL LTD,1011703391,"1,224.33",WEEK 26 TRAVEL EXPENSES,BD1 5HQ,ADMIN
FOOD STANDARDS AGENCY - Westminster,FOOD STANDARDS AGENCY - Westminster,2017-07-04,EXP - PURCHASE OF GOODS/SERVICES - SUBSISTENCE,"AGRICULTURAL, PROCESS & ENVIRONMENTAL CONTAMINANTS",REDFERN TRAVEL LTD,1011703391,"1,177.85",WEEK 26 TRAVEL EXPENSES,BD1 5HQ,ADMIN
FOOD STANDARDS AGENCY - Westminster,FOOD STANDARDS AGENCY - Westminster,2017-07-11,EXP - PURCHASE OF GOODS/SERVICES - SUBSISTENCE,OPERATIONS ASSURANCE DIVISION (PROGRAMME),REDFERN TRAVEL LTD,1011703451,"1,121.66",WEEK 27 TRAVEL EXPENSES ,BD1 1PL,PROGRAMME
FOOD STANDARDS AGENCY - Westminster,FOOD STANDARDS AGENCY - Westminster,2017-07-04,EXP - PURCHASE OF GOODS/SERVICES - RAIL TRAVEL,ORGANISATIONAL DEVELOPMENT,REDFERN TRAVEL LTD,1011703391,"1,060.55",WEEK 26 TRAVEL EXPENSES,BD1 5HQ,ADMIN
FOOD STANDARDS AGENCY - Westminster,FOOD STANDARDS AGENCY - Westminster,2017-07-11,EXP - PURCHASE OF GOODS/SERVICES - RAIL TRAVEL,CORPORATE SUPPORT UNIT,REDFERN TRAVEL LTD,1011703451,957.10,WEEK 27 TRAVEL EXPENSES ,BD1 1PL,ADMIN
FOOD STANDARDS AGENCY - Westminster,FOOD STANDARDS AGENCY - Westminster,2017-07-11,EXP - PURCHASE OF GOODS/SERVICES - SUBSISTENCE,CORPORATE SUPPORT UNIT,REDFERN TRAVEL LTD,1011703451,941.26,WEEK 27 TRAVEL EXPENSES ,BD1 1PL,ADMIN
FOOD STANDARDS AGENCY - Westminster,FOOD STANDARDS AGENCY - Westminster,2017-07-11,EXP - PURCHASE OF GOODS/SERVICES - SUBSISTENCE,IT SERVICE DELIVERY,REDFERN TRAVEL LTD,1011703451,901.83,WEEK 27 TRAVEL EXPENSES ,BD1 1PL,ADMIN
FOOD STANDARDS AGENCY - Westminster,FOOD STANDARDS AGENCY - Westminster,2017-07-14,EXP - PURCHASE OF GOODS/SERVICES -ACCOMM & BLDNG MGMT - MAINTENANCE & REPAIRS,SECURITY & ESTATES,INTERSERVE FM LTD,1011703489,850.89,SERVICES  Provision of FM Services in Aviation House from October 2016 to February 2018 (FSA Contract Ref. FSA 451),SE1 8RT,ADMIN
FOOD STANDARDS AGENCY - Westminster,FOOD STANDARDS AGENCY - Westminster,2017-07-04,EXP - PURCHASE OF GOODS/SERVICES - RAIL TRAVEL,FINANCE BRANCH,REDFERN TRAVEL LTD,1011703391,807.70,WEEK 26 TRAVEL EXPENSES,BD1 5HQ,ADMIN
FOOD STANDARDS AGENCY - Westminster,FOOD STANDARDS AGENCY - Westminster,2017-07-11,EXP - PURCHASE OF GOODS/SERVICES - RAIL TRAVEL,COMMS,REDFERN TRAVEL LTD,1011703451,783.10,WEEK 27 TRAVEL EXPENSES ,BD1 1PL,ADMIN
FOOD STANDARDS AGENCY - Westminster,FOOD STANDARDS AGENCY - Westminster,2017-07-04,EXP - PURCHASE OF GOODS/SERVICES - FOREIGN SUBSISTENCE,CHIEF SCIENTIST  ,REDFERN TRAVEL LTD,1011703391,726.70,WEEK 26 TRAVEL EXPENSES,BD1 5HQ,ADMIN
FOOD STANDARDS AGENCY - Westminster,FOOD STANDARDS AGENCY - Westminster,2017-07-11,EXP - PURCHASE OF GOODS/SERVICES - SUBSISTENCE,COMMS,REDFERN TRAVEL LTD,1011703451,714.48,WEEK 27 TRAVEL EXPENSES ,BD1 1PL,ADMIN
FOOD STANDARDS AGENCY - Westminster,FOOD STANDARDS AGENCY - Westminster,2017-07-04,EXP - PURCHASE OF GOODS/SERVICES - RAIL TRAVEL,FOOD INCIDENTS AND RESILIENCE PROG,REDFERN TRAVEL LTD,1011703391,709.90,WEEK 26 TRAVEL EXPENSES,BD1 5HQ,PROGRAMME
FOOD STANDARDS AGENCY - Westminster,FOOD STANDARDS AGENCY - Westminster,2017-07-11,EXP - PURCHASE OF GOODS/SERVICES - SUBSISTENCE,FOOD INCIDENTS AND RESILIENCE PROG,REDFERN TRAVEL LTD,1011703451,701.88,WEEK 27 TRAVEL EXPENSES ,BD1 1PL,PROGRAMME
FOOD STANDARDS AGENCY - Westminster,FOOD STANDARDS AGENCY - Westminster,2017-07-04,EXP - PURCHASE OF GOODS/SERVICES - SUBSISTENCE,ORGANISATIONAL DEVELOPMENT,REDFERN TRAVEL LTD,1011703391,683.73,WEEK 26 TRAVEL EXPENSES,BD1 5HQ,ADMIN
FOOD STANDARDS AGENCY - Westminster,FOOD STANDARDS AGENCY - Westminster,2017-07-04,EXP - PURCHASE OF GOODS/SERVICES - SUBSISTENCE,OPERATIONAL DELIVERY ,REDFERN TRAVEL LTD,1011703391,644.52,WEEK 26 TRAVEL EXPENSES,BD1 5HQ,PROGRAMME
FOOD STANDARDS AGENCY - Westminster,FOOD STANDARDS AGENCY - Westminster,2017-07-11,EXP - PURCHASE OF GOODS/SERVICES - RAIL TRAVEL,FINANCE BRANCH,REDFERN TRAVEL LTD,1011703451,622.75,WEEK 27 TRAVEL EXPENSES ,BD1 1PL,ADMIN
FOOD STANDARDS AGENCY - Westminster,FOOD STANDARDS AGENCY - Westminster,2017-07-04,EXP - PURCHASE OF GOODS/SERVICES - RAIL TRAVEL,INFORMATION & KNOWLEDGE MANAGMENT,REDFERN TRAVEL LTD,1011703391,619.40,WEEK 26 TRAVEL EXPENSES,BD1 5HQ,ADMIN
FOOD STANDARDS AGENCY - Westminster,FOOD STANDARDS AGENCY - Westminster,2017-07-11,EXP - PURCHASE OF GOODS/SERVICES - RAIL TRAVEL,IT SERVICE DELIVERY,REDFERN TRAVEL LTD,1011703451,541.60,WEEK 27 TRAVEL EXPENSES ,BD1 1PL,ADMIN
FOOD STANDARDS AGENCY - Westminster,FOOD STANDARDS AGENCY - Westminster,2017-07-04,EXP - PURCHASE OF GOODS/SERVICES - RAIL TRAVEL,CORPORATE SUPPORT UNIT,REDFERN TRAVEL LTD,1011703391,520.60,WEEK 26 TRAVEL EXPENSES,BD1 5HQ,ADMIN
FOOD STANDARDS AGENCY - Westminster,FOOD STANDARDS AGENCY - Westminster,2017-07-11,EXP - PURCHASE OF GOODS/SERVICES - RAIL TRAVEL,CHIEF EXECUTIVE & PRIVATE OFFICE,REDFERN TRAVEL LTD,1011703451,504.40,WEEK 27 TRAVEL EXPENSES ,BD1 1PL,ADMIN
FOOD STANDARDS AGENCY - Westminster,FOOD STANDARDS AGENCY - Westminster,2017-07-11,EXP - PURCHASE OF GOODS/SERVICES - FOREIGN SUBSISTENCE,FOOD CRIME UNIT ADMIN,REDFERN TRAVEL LTD,1011703451,494.48,WEEK 27 TRAVEL EXPENSES ,BD1 1PL,ADMIN
FOOD STANDARDS AGENCY - Westminster,FOOD STANDARDS AGENCY - Westminster,2017-07-11,EXP - PURCHASE OF GOODS/SERVICES - RAIL TRAVEL,North 3,REDFERN TRAVEL LTD,1011703451,492.89,WEEK 27 TRAVEL EXPENSES ,BD1 1PL,PROGRAMME
FOOD STANDARDS AGENCY - Westminster,FOOD STANDARDS AGENCY - Westminster,2017-07-04,EXP - PURCHASE OF GOODS/SERVICES - SUBSISTENCE,IT SERVICE DELIVERY,REDFERN TRAVEL LTD,1011703391,471.80,WEEK 26 TRAVEL EXPENSES,BD1 5HQ,ADMIN
FOOD STANDARDS AGENCY - Westminster,FOOD STANDARDS AGENCY - Westminster,2017-07-04,EXP - PURCHASE OF GOODS/SERVICES - SUBSISTENCE,FOOD INCIDENTS AND RESILIENCE PROG,REDFERN TRAVEL LTD,1011703391,445.89,WEEK 26 TRAVEL EXPENSES,BD1 5HQ,PROGRAMME
FOOD STANDARDS AGENCY - Westminster,FOOD STANDARDS AGENCY - Westminster,2017-07-04,EXP - PURCHASE OF GOODS/SERVICES - AIR TRAVEL,REGULATING OUR FUTURE,REDFERN TRAVEL LTD,1011703391,445.64,WEEK 26 TRAVEL EXPENSES,BD1 5HQ,ADMIN
FOOD STANDARDS AGENCY - Westminster,FOOD STANDARDS AGENCY - Westminster,2017-07-04,EXP - PURCHASE OF GOODS/SERVICES - FOREIGN SUBSISTENCE,REGULATORY DELIVERY,REDFERN TRAVEL LTD,1011703391,432.03,WEEK 26 TRAVEL EXPENSES,BD1 5HQ,ADMIN
FOOD STANDARDS AGENCY - Westminster,FOOD STANDARDS AGENCY - Westminster,2017-07-04,EXP - PURCHASE OF GOODS/SERVICES - RAIL TRAVEL,NON MEAT FIELD OPS,REDFERN TRAVEL LTD,1011703391,420.50,WEEK 26 TRAVEL EXPENSES,BD1 5HQ,PROGRAMME
FOOD STANDARDS AGENCY - Westminster,FOOD STANDARDS AGENCY - Westminster,2017-07-11,EXP - PURCHASE OF GOODS/SERVICES - FOREIGN SUBSISTENCE,"RADIOLOGICAL, NOVEL FOOD & PROCESSES",REDFERN TRAVEL LTD,1011703451,420.03,WEEK 27 TRAVEL EXPENSES ,BD1 1PL,ADMIN
FOOD STANDARDS AGENCY - Westminster,FOOD STANDARDS AGENCY - Westminster,2017-07-04,EXP - PURCHASE OF GOODS/SERVICES - SUBSISTENCE,OPERATIONS ASSURANCE DIVISION (PROGRAMME),REDFERN TRAVEL LTD,1011703391,414.03,WEEK 26 TRAVEL EXPENSES,BD1 5HQ,PROGRAMME
FOOD STANDARDS AGENCY - Westminster,FOOD STANDARDS AGENCY - Westminster,2017-07-04,EXP - PURCHASE OF GOODS/SERVICES - FOREIGN SUBSISTENCE,"AGRICULTURAL, PROCESS & ENVIRONMENTAL CONTAMINANTS",REDFERN TRAVEL LTD,1011703391,393.50,WEEK 26 TRAVEL EXPENSES,BD1 5HQ,ADMIN
FOOD STANDARDS AGENCY - Westminster,FOOD STANDARDS AGENCY - Westminster,2017-07-11,EXP - PURCHASE OF GOODS/SERVICES - SUBSISTENCE,REGULATING OUR FUTURE,REDFERN TRAVEL LTD,1011703451,391.46,WEEK 27 TRAVEL EXPENSES ,BD1 1PL,ADMIN
FOOD STANDARDS AGENCY - Westminster,FOOD STANDARDS AGENCY - Westminster,2017-07-04,EXP - PURCHASE OF GOODS/SERVICES -  FOREIGN AIR TRAVEL,REGULATORY & INTERNATIONAL,REDFERN TRAVEL LTD,1011703391,379.00,WEEK 26 TRAVEL EXPENSES,BD1 5HQ,ADMIN
FOOD STANDARDS AGENCY - Westminster,FOOD STANDARDS AGENCY - Westminster,2017-07-11,EXP - PURCHASE OF GOODS/SERVICES - RAIL TRAVEL,Wales and West 4 ,REDFERN TRAVEL LTD,1011703451,369.40,WEEK 27 TRAVEL EXPENSES ,BD1 1PL,PROGRAMME
FOOD STANDARDS AGENCY - Westminster,FOOD STANDARDS AGENCY - Westminster,2017-07-04,EXP - PURCHASE OF GOODS/SERVICES - SUBSISTENCE,"PLANNING, PERFORMANCE & CHANGE",REDFERN TRAVEL LTD,1011703391,360.44,WEEK 26 TRAVEL EXPENSES,BD1 5HQ,ADMIN
FOOD STANDARDS AGENCY - Westminster,FOOD STANDARDS AGENCY - Westminster,2017-07-04,EXP - PURCHASE OF GOODS/SERVICES - SUBSISTENCE,"ANIMAL FEED, TSEs & ABPs",REDFERN TRAVEL LTD,1011703391,354.12,WEEK 26 TRAVEL EXPENSES,BD1 5HQ,ADMIN
FOOD STANDARDS AGENCY - Westminster,FOOD STANDARDS AGENCY - Westminster,2017-07-11,EXP - PURCHASE OF GOODS/SERVICES - SUBSISTENCE,INTERNAL AUDIT,REDFERN TRAVEL LTD,1011703451,353.00,WEEK 27 TRAVEL EXPENSES ,BD1 1PL,ADMIN
FOOD STANDARDS AGENCY - Westminster,FOOD STANDARDS AGENCY - Westminster,2017-07-04,EXP - PURCHASE OF GOODS/SERVICES - FOREIGN SUBSISTENCE,SCIENTIFIC METHODS AND LABORATORY POLICY,REDFERN TRAVEL LTD,1011703391,352.20,WEEK 26 TRAVEL EXPENSES,BD1 5HQ,ADMIN
FOOD STANDARDS AGENCY - Westminster,FOOD STANDARDS AGENCY - Westminster,2017-07-11,EXP - PURCHASE OF GOODS/SERVICES - RAIL TRAVEL,"ANIMAL FEED, TSEs & ABPs",REDFERN TRAVEL LTD,1011703451,341.00,WEEK 27 TRAVEL EXPENSES ,BD1 1PL,ADMIN
FOOD STANDARDS AGENCY - Westminster,FOOD STANDARDS AGENCY - Westminster,2017-07-11,EXP - PURCHASE OF GOODS/SERVICES - SUBSISTENCE,"PLANNING, PERFORMANCE & CHANGE",REDFERN TRAVEL LTD,1011703451,340.14,WEEK 27 TRAVEL EXPENSES ,BD1 1PL,ADMIN
FOOD STANDARDS AGENCY - Westminster,FOOD STANDARDS AGENCY - Westminster,2017-07-04,EXP - PURCHASE OF GOODS/SERVICES - RAIL TRAVEL,North 2,REDFERN TRAVEL LTD,1011703391,333.80,WEEK 26 TRAVEL EXPENSES,BD1 5HQ,PROGRAMME
FOOD STANDARDS AGENCY - Westminster,FOOD STANDARDS AGENCY - Westminster,2017-07-04,EXP - PURCHASE OF GOODS/SERVICES - FOREIGN SUBSISTENCE,ANALYSIS & RESEARCH BRANCH,REDFERN TRAVEL LTD,1011703391,331.35,WEEK 26 TRAVEL EXPENSES,BD1 5HQ,ADMIN
FOOD STANDARDS AGENCY - Westminster,FOOD STANDARDS AGENCY - Westminster,2017-07-11,EXP - PURCHASE OF GOODS/SERVICES - RAIL TRAVEL,INFORMATION & KNOWLEDGE MANAGMENT,REDFERN TRAVEL LTD,1011703451,322.60,WEEK 27 TRAVEL EXPENSES ,BD1 1PL,ADMIN
FOOD STANDARDS AGENCY - Westminster,FOOD STANDARDS AGENCY - Westminster,2017-07-11,EXP - PURCHASE OF GOODS/SERVICES - AIR TRAVEL,REGULATORY & INTERNATIONAL,REDFERN TRAVEL LTD,1011703451,318.00,WEEK 27 TRAVEL EXPENSES ,BD1 1PL,ADMIN
FOOD STANDARDS AGENCY - Westminster,FOOD STANDARDS AGENCY - Westminster,2017-07-04,EXP - PURCHASE OF GOODS/SERVICES - RAIL TRAVEL,Wales and West 1 (England),REDFERN TRAVEL LTD,1011703391,316.15,WEEK 26 TRAVEL EXPENSES,BD1 5HQ,PROGRAMME
FOOD STANDARDS AGENCY - Westminster,FOOD STANDARDS AGENCY - Westminster,2017-07-11,EXP - PURCHASE OF GOODS/SERVICES - RAIL TRAVEL,FOOD INCIDENTS AND RESILIENCE PROG,REDFERN TRAVEL LTD,1011703451,301.80,WEEK 27 TRAVEL EXPENSES ,BD1 1PL,PROGRAMME
FOOD STANDARDS AGENCY - Westminster,FOOD STANDARDS AGENCY - Westminster,2017-07-04,EXP - PURCHASE OF GOODS/SERVICES - RAIL TRAVEL,East 4,REDFERN TRAVEL LTD,1011703391,301.70,WEEK 26 TRAVEL EXPENSES,BD1 5HQ,PROGRAMME
FOOD STANDARDS AGENCY - Westminster,FOOD STANDARDS AGENCY - Westminster,2017-07-04,EXP - PURCHASE OF GOODS/SERVICES - RAIL TRAVEL,"PLANNING, PERFORMANCE & CHANGE",REDFERN TRAVEL LTD,1011703391,297.90,WEEK 26 TRAVEL EXPENSES,BD1 5HQ,ADMIN
FOOD STANDARDS AGENCY - Westminster,FOOD STANDARDS AGENCY - Westminster,2017-07-11,EXP - PURCHASE OF GOODS/SERVICES - FOREIGN SUBSISTENCE,DIGITAL,REDFERN TRAVEL LTD,1011703451,296.30,WEEK 27 TRAVEL EXPENSES ,BD1 1PL,ADMIN
FOOD STANDARDS AGENCY - Westminster,FOOD STANDARDS AGENCY - Westminster,2017-07-04,EXP - PURCHASE OF GOODS/SERVICES - RAIL TRAVEL,North 1,REDFERN TRAVEL LTD,1011703391,270.60,WEEK 26 TRAVEL EXPENSES,BD1 5HQ,PROGRAMME
FOOD STANDARDS AGENCY - Westminster,FOOD STANDARDS AGENCY - Westminster,2017-07-11,EXP - PURCHASE OF GOODS/SERVICES - AIR TRAVEL,REGULATING OUR FUTURE,REDFERN TRAVEL LTD,1011703451,258.82,WEEK 27 TRAVEL EXPENSES ,BD1 1PL,ADMIN
FOOD STANDARDS AGENCY - Westminster,FOOD STANDARDS AGENCY - Westminster,2017-07-04,EXP - PURCHASE OF GOODS/SERVICES - RAIL TRAVEL,INTERNAL AUDIT,REDFERN TRAVEL LTD,1011703391,258.20,WEEK 26 TRAVEL EXPENSES,BD1 5HQ,ADMIN
FOOD STANDARDS AGENCY - Westminster,FOOD STANDARDS AGENCY - Westminster,2017-07-04,EXP - PURCHASE OF GOODS/SERVICES - AIR TRAVEL,COMMS,REDFERN TRAVEL LTD,1011703391,251.96,WEEK 26 TRAVEL EXPENSES,BD1 5HQ,ADMIN
FOOD STANDARDS AGENCY - Westminster,FOOD STANDARDS AGENCY - Westminster,2017-07-11,EXP - PURCHASE OF GOODS/SERVICES - RAIL TRAVEL,ANIMAL FEED,REDFERN TRAVEL LTD,1011703451,251.00,WEEK 27 TRAVEL EXPENSES ,BD1 1PL,ADMIN
FOOD STANDARDS AGENCY - Westminster,FOOD STANDARDS AGENCY - Westminster,2017-07-11,EXP - PURCHASE OF GOODS/SERVICES - RAIL TRAVEL,CHEMICAL RISK ASSESSMENT UNIT,REDFERN TRAVEL LTD,1011703451,250.00,WEEK 27 TRAVEL EXPENSES ,BD1 1PL,ADMIN
FOOD STANDARDS AGENCY - Westminster,FOOD STANDARDS AGENCY - Westminster,2017-07-04,EXP - PURCHASE OF GOODS/SERVICES -  FOREIGN AIR TRAVEL,"RADIOLOGICAL, NOVEL FOOD & PROCESSES",REDFERN TRAVEL LTD,1011703391,249.00,WEEK 26 TRAVEL EXPENSES,BD1 5HQ,ADMIN
FOOD STANDARDS AGENCY - Westminster,FOOD STANDARDS AGENCY - Westminster,2017-07-04,EXP - PURCHASE OF GOODS/SERVICES - SUBSISTENCE,Wales and West 4 ,REDFERN TRAVEL LTD,1011703391,246.93,WEEK 26 TRAVEL EXPENSES,BD1 5HQ,PROGRAMME
FOOD STANDARDS AGENCY - Westminster,FOOD STANDARDS AGENCY - Westminster,2017-07-04,EXP - PURCHASE OF GOODS/SERVICES - RAIL TRAVEL,CHIEF SCIENTIST  ,REDFERN TRAVEL LTD,1011703391,240.50,WEEK 26 TRAVEL EXPENSES,BD1 5HQ,ADMIN
FOOD STANDARDS AGENCY - Westminster,FOOD STANDARDS AGENCY - Westminster,2017-07-11,EXP - PURCHASE OF GOODS/SERVICES -  FOREIGN AIR TRAVEL,REGULATORY & INTERNATIONAL,REDFERN TRAVEL LTD,1011703451,231.00,WEEK 27 TRAVEL EXPENSES ,BD1 1PL,ADMIN
FOOD STANDARDS AGENCY - Westminster,FOOD STANDARDS AGENCY - Westminster,2017-07-11,EXP - PURCHASE OF GOODS/SERVICES - SUBSISTENCE,LEGAL  BRANCH A & INVESTIGATIONS,REDFERN TRAVEL LTD,1011703451,227.80,WEEK 27 TRAVEL EXPENSES ,BD1 1PL,ADMIN
FOOD STANDARDS AGENCY - Westminster,FOOD STANDARDS AGENCY - Westminster,2017-07-11,EXP - PURCHASE OF GOODS/SERVICES - SUBSISTENCE,ORGANISATIONAL DEVELOPMENT,REDFERN TRAVEL LTD,1011703451,226.41,WEEK 27 TRAVEL EXPENSES ,BD1 1PL,ADMIN
FOOD STANDARDS AGENCY - Westminster,FOOD STANDARDS AGENCY - Westminster,2017-07-11,EXP - PURCHASE OF GOODS/SERVICES - FOREIGN SUBSISTENCE,SCIENTIFIC METHODS AND LABORATORY POLICY,REDFERN TRAVEL LTD,1011703451,225.62,WEEK 27 TRAVEL EXPENSES ,BD1 1PL,ADMIN
FOOD STANDARDS AGENCY - Westminster,FOOD STANDARDS AGENCY - Westminster,2017-07-04,EXP - PURCHASE OF GOODS/SERVICES - AIR TRAVEL,MICRO FOOD SAFETY BRANCH,REDFERN TRAVEL LTD,1011703391,215.77,WEEK 26 TRAVEL EXPENSES,BD1 5HQ,ADMIN
FOOD STANDARDS AGENCY - Westminster,FOOD STANDARDS AGENCY - Westminster,2017-07-11,EXP - PURCHASE OF GOODS/SERVICES - RAIL TRAVEL,Wales and West 2 (England),REDFERN TRAVEL LTD,1011703451,202.00,WEEK 27 TRAVEL EXPENSES ,BD1 1PL,PROGRAMME
FOOD STANDARDS AGENCY - Westminster,FOOD STANDARDS AGENCY - Westminster,2017-07-11,EXP - PURCHASE OF GOODS/SERVICES - SUBSISTENCE,"RADIOLOGICAL, NOVEL FOOD & PROCESSES",REDFERN TRAVEL LTD,1011703451,190.13,WEEK 27 TRAVEL EXPENSES ,BD1 1PL,ADMIN
FOOD STANDARDS AGENCY - Westminster,FOOD STANDARDS AGENCY - Westminster,2017-07-04,EXP - PURCHASE OF GOODS/SERVICES - RAIL TRAVEL,FOOD CRIME UNIT ADMIN,REDFERN TRAVEL LTD,1011703391,189.00,WEEK 26 TRAVEL EXPENSES,BD1 5HQ,ADMIN
FOOD STANDARDS AGENCY - Westminster,FOOD STANDARDS AGENCY - Westminster,2017-07-04,EXP - PURCHASE OF GOODS/SERVICES - AIR TRAVEL,NON MEAT FIELD OPS,REDFERN TRAVEL LTD,1011703391,182.52,WEEK 26 TRAVEL EXPENSES,BD1 5HQ,PROGRAMME
FOOD STANDARDS AGENCY - Westminster,FOOD STANDARDS AGENCY - Westminster,2017-07-11,EXP - PURCHASE OF GOODS/SERVICES - AIR TRAVEL,NON MEAT FIELD OPS,REDFERN TRAVEL LTD,1011703451,181.52,WEEK 27 TRAVEL EXPENSES ,BD1 1PL,PROGRAMME
FOOD STANDARDS AGENCY - Westminster,FOOD STANDARDS AGENCY - Westminster,2017-07-11,EXP - PURCHASE OF GOODS/SERVICES - RAIL TRAVEL,PROCUREMENT,REDFERN TRAVEL LTD,1011703451,163.20,WEEK 27 TRAVEL EXPENSES ,BD1 1PL,ADMIN
FOOD STANDARDS AGENCY - Westminster,FOOD STANDARDS AGENCY - Westminster,2017-07-11,EXP - PURCHASE OF GOODS/SERVICES - RAIL TRAVEL,INTERNAL AUDIT,REDFERN TRAVEL LTD,1011703451,160.20,WEEK 27 TRAVEL EXPENSES ,BD1 1PL,ADMIN
FOOD STANDARDS AGENCY - Westminster,FOOD STANDARDS AGENCY - Westminster,2017-07-04,EXP - PURCHASE OF GOODS/SERVICES - SUBSISTENCE,CHEMICAL RISK ASSESSMENT UNIT,REDFERN TRAVEL LTD,1011703391,154.79,WEEK 26 TRAVEL EXPENSES,BD1 5HQ,ADMIN
FOOD STANDARDS AGENCY - Westminster,FOOD STANDARDS AGENCY - Westminster,2017-07-04,EXP - PURCHASE OF GOODS/SERVICES - AIR TRAVEL,FOOD ADDITIVES,REDFERN TRAVEL LTD,1011703391,153.00,WEEK 26 TRAVEL EXPENSES,BD1 5HQ,ADMIN
FOOD STANDARDS AGENCY - Westminster,FOOD STANDARDS AGENCY - Westminster,2017-07-04,EXP - PURCHASE OF GOODS/SERVICES -  FOREIGN AIR TRAVEL,MEAT HYGIENE POLICY,REDFERN TRAVEL LTD,1011703391,153.00,WEEK 26 TRAVEL EXPENSES,BD1 5HQ,ADMIN
FOOD STANDARDS AGENCY - Westminster,FOOD STANDARDS AGENCY - Westminster,2017-07-04,EXP - PURCHASE OF GOODS/SERVICES - RAIL TRAVEL,FOOD HYGIENE POLICY,REDFERN TRAVEL LTD,1011703391,151.20,WEEK 26 TRAVEL EXPENSES,BD1 5HQ,ADMIN
FOOD STANDARDS AGENCY - Westminster,FOOD STANDARDS AGENCY - Westminster,2017-07-04,EXP - PURCHASE OF GOODS/SERVICES - SUBSISTENCE,ANIMAL FEED,REDFERN TRAVEL LTD,1011703391,150.10,WEEK 26 TRAVEL EXPENSES,BD1 5HQ,ADMIN
FOOD STANDARDS AGENCY - Westminster,FOOD STANDARDS AGENCY - Westminster,2017-07-04,EXP - PURCHASE OF GOODS/SERVICES - RAIL TRAVEL,SCIENTIFIC METHODS AND LABORATORY POLICY,REDFERN TRAVEL LTD,1011703391,150.00,WEEK 26 TRAVEL EXPENSES,BD1 5HQ,ADMIN
FOOD STANDARDS AGENCY - Westminster,FOOD STANDARDS AGENCY - Westminster,2017-07-04,EXP - PURCHASE OF GOODS/SERVICES - SUBSISTENCE,CHIEF SCIENTIST  ,REDFERN TRAVEL LTD,1011703391,145.49,WEEK 26 TRAVEL EXPENSES,BD1 5HQ,ADMIN
FOOD STANDARDS AGENCY - Westminster,FOOD STANDARDS AGENCY - Westminster,2017-07-11,EXP - PURCHASE OF GOODS/SERVICES - RAIL TRAVEL,"EMPLOYEE RELATIONS, SYSTEMS & DATA",REDFERN TRAVEL LTD,1011703451,144.80,WEEK 27 TRAVEL EXPENSES ,BD1 1PL,ADMIN
FOOD STANDARDS AGENCY - Westminster,FOOD STANDARDS AGENCY - Westminster,2017-07-04,EXP - PURCHASE OF GOODS/SERVICES - SUBSISTENCE,FOOD ADDITIVES,REDFERN TRAVEL LTD,1011703391,143.94,WEEK 26 TRAVEL EXPENSES,BD1 5HQ,ADMIN
FOOD STANDARDS AGENCY - Westminster,FOOD STANDARDS AGENCY - Westminster,2017-07-11,EXP - PURCHASE OF GOODS/SERVICES - RAIL TRAVEL,Wales and West 1 (England),REDFERN TRAVEL LTD,1011703451,138.80,WEEK 27 TRAVEL EXPENSES ,BD1 1PL,PROGRAMME
FOOD STANDARDS AGENCY - Westminster,FOOD STANDARDS AGENCY - Westminster,2017-07-11,EXP - PURCHASE OF GOODS/SERVICES - SUBSISTENCE,Wales and West 4 ,REDFERN TRAVEL LTD,1011703451,138.30,WEEK 27 TRAVEL EXPENSES ,BD1 1PL,PROGRAMME
FOOD STANDARDS AGENCY - Westminster,FOOD STANDARDS AGENCY - Westminster,2017-07-04,EXP - PURCHASE OF GOODS/SERVICES - FOREIGN SUBSISTENCE,"RADIOLOGICAL, NOVEL FOOD & PROCESSES",REDFERN TRAVEL LTD,1011703391,137.08,WEEK 26 TRAVEL EXPENSES,BD1 5HQ,ADMIN
FOOD STANDARDS AGENCY - Westminster,FOOD STANDARDS AGENCY - Westminster,2017-07-11,EXP - PURCHASE OF GOODS/SERVICES -  FOREIGN AIR TRAVEL,"RADIOLOGICAL, NOVEL FOOD & PROCESSES",REDFERN TRAVEL LTD,1011703451,135.60,WEEK 27 TRAVEL EXPENSES ,BD1 1PL,ADMIN
FOOD STANDARDS AGENCY - Westminster,FOOD STANDARDS AGENCY - Westminster,2017-07-04,EXP - PURCHASE OF GOODS/SERVICES - FOREIGN SUBSISTENCE,ALLERGY & INTOLERANCE,REDFERN TRAVEL LTD,1011703391,135.28,WEEK 26 TRAVEL EXPENSES,BD1 5HQ,ADMIN
FOOD STANDARDS AGENCY - Westminster,FOOD STANDARDS AGENCY - Westminster,2017-07-04,EXP - PURCHASE OF GOODS/SERVICES - RAIL TRAVEL,CHEMICAL RISK ASSESSMENT UNIT,REDFERN TRAVEL LTD,1011703391,128.10,WEEK 26 TRAVEL EXPENSES,BD1 5HQ,ADMIN
FOOD STANDARDS AGENCY - Westminster,FOOD STANDARDS AGENCY - Westminster,2017-07-04,EXP - PURCHASE OF GOODS/SERVICES - SUBSISTENCE,FINANCE BRANCH,REDFERN TRAVEL LTD,1011703391,126.60,WEEK 26 TRAVEL EXPENSES,BD1 5HQ,ADMIN
FOOD STANDARDS AGENCY - Westminster,FOOD STANDARDS AGENCY - Westminster,2017-07-04,EXP - PURCHASE OF GOODS/SERVICES - RAIL TRAVEL,ANIMAL FEED,REDFERN TRAVEL LTD,1011703391,123.50,WEEK 26 TRAVEL EXPENSES,BD1 5HQ,ADMIN
FOOD STANDARDS AGENCY - Westminster,FOOD STANDARDS AGENCY - Westminster,2017-07-04,EXP - PURCHASE OF GOODS/SERVICES - TAXI SERVICES,"AGRICULTURAL, PROCESS & ENVIRONMENTAL CONTAMINANTS",REDFERN TRAVEL LTD,1011703391,120.08,WEEK 26 TRAVEL EXPENSES,BD1 5HQ,ADMIN
FOOD STANDARDS AGENCY - Westminster,FOOD STANDARDS AGENCY - Westminster,2017-07-11,EXP - PURCHASE OF GOODS/SERVICES - RAIL TRAVEL,FOOD CRIME UNIT ADMIN,REDFERN TRAVEL LTD,1011703451,117.20,WEEK 27 TRAVEL EXPENSES ,BD1 1PL,ADMIN
FOOD STANDARDS AGENCY - Westminster,FOOD STANDARDS AGENCY - Westminster,2017-07-04,EXP - PURCHASE OF GOODS/SERVICES - RAIL TRAVEL,PROCUREMENT,REDFERN TRAVEL LTD,1011703391,115.90,WEEK 26 TRAVEL EXPENSES,BD1 5HQ,ADMIN
FOOD STANDARDS AGENCY - Westminster,FOOD STANDARDS AGENCY - Westminster,2017-07-04,EXP - PURCHASE OF GOODS/SERVICES - SUBSISTENCE,CORPORATE SUPPORT UNIT,REDFERN TRAVEL LTD,1011703391,110.13,WEEK 26 TRAVEL EXPENSES,BD1 5HQ,ADMIN
FOOD STANDARDS AGENCY - Westminster,FOOD STANDARDS AGENCY - Westminster,2017-07-11,EXP - PURCHASE OF GOODS/SERVICES - SUBSISTENCE,REGULATORY & INTERNATIONAL,REDFERN TRAVEL LTD,1011703451,110.13,WEEK 27 TRAVEL EXPENSES ,BD1 1PL,ADMIN
FOOD STANDARDS AGENCY - Westminster,FOOD STANDARDS AGENCY - Westminster,2017-07-11,EXP - PURCHASE OF GOODS/SERVICES - AIR TRAVEL,CHEMICAL RISK ASSESSMENT UNIT,REDFERN TRAVEL LTD,1011703451,108.98,WEEK 27 TRAVEL EXPENSES ,BD1 1PL,ADMIN
FOOD STANDARDS AGENCY - Westminster,FOOD STANDARDS AGENCY - Westminster,2017-07-11,EXP - PURCHASE OF GOODS/SERVICES - SUBSISTENCE,INFORMATION & KNOWLEDGE MANAGMENT,REDFERN TRAVEL LTD,1011703451,103.01,WEEK 27 TRAVEL EXPENSES ,BD1 1PL,ADMIN
FOOD STANDARDS AGENCY - Westminster,FOOD STANDARDS AGENCY - Westminster,2017-07-04,EXP - PURCHASE OF GOODS/SERVICES - AIR TRAVEL,OPERATIONS ASSURANCE DIVISION (PROGRAMME),REDFERN TRAVEL LTD,1011703391,99.78,WEEK 26 TRAVEL EXPENSES,BD1 5HQ,PROGRAMME
FOOD STANDARDS AGENCY - Westminster,FOOD STANDARDS AGENCY - Westminster,2017-07-11,EXP - PURCHASE OF GOODS/SERVICES - RAIL TRAVEL,East 3,REDFERN TRAVEL LTD,1011703451,95.60,WEEK 27 TRAVEL EXPENSES ,BD1 1PL,PROGRAMME
FOOD STANDARDS AGENCY - Westminster,FOOD STANDARDS AGENCY - Westminster,2017-07-04,EXP - PURCHASE OF GOODS/SERVICES - AIR TRAVEL,FOOD CRIME UNIT PROG,REDFERN TRAVEL LTD,1011703391,94.98,WEEK 26 TRAVEL EXPENSES,BD1 5HQ,PROGRAMME
FOOD STANDARDS AGENCY - Westminster,FOOD STANDARDS AGENCY - Westminster,2017-07-11,EXP - PURCHASE OF GOODS/SERVICES - RAIL TRAVEL,LEGAL  BRANCH A & INVESTIGATIONS,REDFERN TRAVEL LTD,1011703451,90.90,WEEK 27 TRAVEL EXPENSES ,BD1 1PL,ADMIN
FOOD STANDARDS AGENCY - Westminster,FOOD STANDARDS AGENCY - Westminster,2017-07-04,EXP - PURCHASE OF GOODS/SERVICES - RAIL TRAVEL,Wales and West 1 (Wales),REDFERN TRAVEL LTD,1011703391,89.00,WEEK 26 TRAVEL EXPENSES,BD1 5HQ,PROGRAMME
FOOD STANDARDS AGENCY - Westminster,FOOD STANDARDS AGENCY - Westminster,2017-07-04,EXP - PURCHASE OF GOODS/SERVICES - SUBSISTENCE,INFORMATION & KNOWLEDGE MANAGMENT,REDFERN TRAVEL LTD,1011703391,85.60,WEEK 26 TRAVEL EXPENSES,BD1 5HQ,ADMIN
FOOD STANDARDS AGENCY - Westminster,FOOD STANDARDS AGENCY - Westminster,2017-07-04,EXP - PURCHASE OF GOODS/SERVICES - TAXI SERVICES,SCIENTIFIC METHODS AND LABORATORY POLICY,REDFERN TRAVEL LTD,1011703391,84.81,WEEK 26 TRAVEL EXPENSES,BD1 5HQ,ADMIN
FOOD STANDARDS AGENCY - Westminster,FOOD STANDARDS AGENCY - Westminster,2017-07-04,EXP - PURCHASE OF GOODS/SERVICES - RAIL TRAVEL,DIGITAL,REDFERN TRAVEL LTD,1011703391,84.00,WEEK 26 TRAVEL EXPENSES,BD1 5HQ,ADMIN
FOOD STANDARDS AGENCY - Westminster,FOOD STANDARDS AGENCY - Westminster,2017-07-11,EXP - PURCHASE OF GOODS/SERVICES - TAXI SERVICES,OPERATIONAL DELIVERY ,REDFERN TRAVEL LTD,1011703451,83.46,WEEK 27 TRAVEL EXPENSES ,BD1 1PL,PROGRAMME
FOOD STANDARDS AGENCY - Westminster,FOOD STANDARDS AGENCY - Westminster,2017-07-11,EXP - PURCHASE OF GOODS/SERVICES - SUBSISTENCE,NON MEAT FIELD OPS,REDFERN TRAVEL LTD,1011703451,81.59,WEEK 27 TRAVEL EXPENSES ,BD1 1PL,PROGRAMME
FOOD STANDARDS AGENCY - Westminster,FOOD STANDARDS AGENCY - Westminster,2017-07-11,EXP - PURCHASE OF GOODS/SERVICES - SUBSISTENCE,CHIEF SCIENTIST  ,REDFERN TRAVEL LTD,1011703451,80.60,WEEK 27 TRAVEL EXPENSES ,BD1 1PL,ADMIN
FOOD STANDARDS AGENCY - Westminster,FOOD STANDARDS AGENCY - Westminster,2017-07-11,EXP - PURCHASE OF GOODS/SERVICES - SUBSISTENCE,East 3,REDFERN TRAVEL LTD,1011703451,80.13,WEEK 27 TRAVEL EXPENSES ,BD1 1PL,PROGRAMME
FOOD STANDARDS AGENCY - Westminster,FOOD STANDARDS AGENCY - Westminster,2017-07-04,EXP - PURCHASE OF GOODS/SERVICES - RAIL TRAVEL,East 2,REDFERN TRAVEL LTD,1011703391,80.00,WEEK 26 TRAVEL EXPENSES,BD1 5HQ,PROGRAMME
FOOD STANDARDS AGENCY - Westminster,FOOD STANDARDS AGENCY - Westminster,2017-07-11,EXP - PURCHASE OF GOODS/SERVICES - SUBSISTENCE,North 4,REDFERN TRAVEL LTD,1011703451,78.60,WEEK 27 TRAVEL EXPENSES ,BD1 1PL,PROGRAMME
FOOD STANDARDS AGENCY - Westminster,FOOD STANDARDS AGENCY - Westminster,2017-07-11,EXP - PURCHASE OF GOODS/SERVICES - RAIL TRAVEL,East 1,REDFERN TRAVEL LTD,1011703451,77.10,WEEK 27 TRAVEL EXPENSES ,BD1 1PL,PROGRAMME
FOOD STANDARDS AGENCY - Westminster,FOOD STANDARDS AGENCY - Westminster,2017-07-04,EXP - PURCHASE OF GOODS/SERVICES - RAIL TRAVEL,MICRO FOOD SAFETY BRANCH,REDFERN TRAVEL LTD,1011703391,72.00,WEEK 26 TRAVEL EXPENSES,BD1 5HQ,ADMIN
FOOD STANDARDS AGENCY - Westminster,FOOD STANDARDS AGENCY - Westminster,2017-07-11,EXP - PURCHASE OF GOODS/SERVICES - RAIL TRAVEL,North 4,REDFERN TRAVEL LTD,1011703451,70.40,WEEK 27 TRAVEL EXPENSES ,BD1 1PL,PROGRAMME
FOOD STANDARDS AGENCY - Westminster,FOOD STANDARDS AGENCY - Westminster,2017-07-11,EXP - PURCHASE OF GOODS/SERVICES - RAIL TRAVEL,MICRO FOOD SAFETY BRANCH,REDFERN TRAVEL LTD,1011703451,70.30,WEEK 27 TRAVEL EXPENSES ,BD1 1PL,ADMIN
FOOD STANDARDS AGENCY - Westminster,FOOD STANDARDS AGENCY - Westminster,2017-07-11,EXP - PURCHASE OF GOODS/SERVICES - SUBSISTENCE,East 4,REDFERN TRAVEL LTD,1011703451,69.90,WEEK 27 TRAVEL EXPENSES ,BD1 1PL,PROGRAMME
FOOD STANDARDS AGENCY - Westminster,FOOD STANDARDS AGENCY - Westminster,2017-07-11,EXP - PURCHASE OF GOODS/SERVICES - SUBSISTENCE,INPORT & EXPORTS TEAM,REDFERN TRAVEL LTD,1011703451,66.60,WEEK 27 TRAVEL EXPENSES ,BD1 1PL,ADMIN
FOOD STANDARDS AGENCY - Westminster,FOOD STANDARDS AGENCY - Westminster,2017-07-11,EXP - PURCHASE OF GOODS/SERVICES - SUBSISTENCE,North 1,REDFERN TRAVEL LTD,1011703451,58.60,WEEK 27 TRAVEL EXPENSES ,BD1 1PL,PROGRAMME
FOOD STANDARDS AGENCY - Westminster,FOOD STANDARDS AGENCY - Westminster,2017-07-11,EXP - PURCHASE OF GOODS/SERVICES - RAIL TRAVEL,East 2,REDFERN TRAVEL LTD,1011703451,54.40,WEEK 27 TRAVEL EXPENSES ,BD1 1PL,PROGRAMME
FOOD STANDARDS AGENCY - Westminster,FOOD STANDARDS AGENCY - Westminster,2017-07-11,EXP - PURCHASE OF GOODS/SERVICES - RAIL TRAVEL,CHIEF SCIENTIST  ,REDFERN TRAVEL LTD,1011703451,54.20,WEEK 27 TRAVEL EXPENSES ,BD1 1PL,ADMIN
FOOD STANDARDS AGENCY - Westminster,FOOD STANDARDS AGENCY - Westminster,2017-07-11,EXP - PURCHASE OF GOODS/SERVICES - OTHER TRAVEL,South East Area 6 Cluster 66,REDFERN TRAVEL LTD,1011703451,53.91,WEEK 27 TRAVEL EXPENSES ,BD1 1PL,PROGRAMME
FOOD STANDARDS AGENCY - Westminster,FOOD STANDARDS AGENCY - Westminster,2017-07-11,EXP - PURCHASE OF GOODS/SERVICES - SUBSISTENCE,FINANCE BRANCH,REDFERN TRAVEL LTD,1011703451,53.88,WEEK 27 TRAVEL EXPENSES ,BD1 1PL,ADMIN
FOOD STANDARDS AGENCY - Westminster,FOOD STANDARDS AGENCY - Westminster,2017-07-11,EXP - PURCHASE OF GOODS/SERVICES - SUBSISTENCE,Wales and West 2 (Wales),REDFERN TRAVEL LTD,1011703451,53.88,WEEK 27 TRAVEL EXPENSES ,BD1 1PL,PROGRAMME
FOOD STANDARDS AGENCY - Westminster,FOOD STANDARDS AGENCY - Westminster,2017-07-04,EXP - PURCHASE OF GOODS/SERVICES - RAIL TRAVEL,LEGAL  BRANCH A & INVESTIGATIONS,REDFERN TRAVEL LTD,1011703391,50.70,WEEK 26 TRAVEL EXPENSES,BD1 5HQ,ADMIN
FOOD STANDARDS AGENCY - Westminster,FOOD STANDARDS AGENCY - Westminster,2017-07-04,EXP - PURCHASE OF GOODS/SERVICES - RAIL TRAVEL,"RADIOLOGICAL, NOVEL FOOD & PROCESSES",REDFERN TRAVEL LTD,1011703391,50.70,WEEK 26 TRAVEL EXPENSES,BD1 5HQ,ADMIN
FOOD STANDARDS AGENCY - Westminster,FOOD STANDARDS AGENCY - Westminster,2017-07-04,EXP - PURCHASE OF GOODS/SERVICES - TAXI SERVICES,CHIEF EXECUTIVE & PRIVATE OFFICE,REDFERN TRAVEL LTD,1011703391,49.39,WEEK 26 TRAVEL EXPENSES,BD1 5HQ,ADMIN
FOOD STANDARDS AGENCY - Westminster,FOOD STANDARDS AGENCY - Westminster,2017-07-04,EXP - PURCHASE OF GOODS/SERVICES - SUBSISTENCE,North 4,REDFERN TRAVEL LTD,1011703391,43.50,WEEK 26 TRAVEL EXPENSES,BD1 5HQ,PROGRAMME
FOOD STANDARDS AGENCY - Westminster,FOOD STANDARDS AGENCY - Westminster,2017-07-04,EXP - PURCHASE OF GOODS/SERVICES - RAIL TRAVEL,Wales and West 2 (England),REDFERN TRAVEL LTD,1011703391,39.50,WEEK 26 TRAVEL EXPENSES,BD1 5HQ,PROGRAMME
FOOD STANDARDS AGENCY - Westminster,FOOD STANDARDS AGENCY - Westminster,2017-07-11,EXP - PURCHASE OF GOODS/SERVICES - SUBSISTENCE,East 1,REDFERN TRAVEL LTD,1011703451,39.33,WEEK 27 TRAVEL EXPENSES ,BD1 1PL,PROGRAMME
FOOD STANDARDS AGENCY - Westminster,FOOD STANDARDS AGENCY - Westminster,2017-07-04,EXP - PURCHASE OF GOODS/SERVICES - RAIL TRAVEL,"AGRICULTURAL, PROCESS & ENVIRONMENTAL CONTAMINANTS",REDFERN TRAVEL LTD,1011703391,38.00,WEEK 26 TRAVEL EXPENSES,BD1 5HQ,ADMIN
FOOD STANDARDS AGENCY - Westminster,FOOD STANDARDS AGENCY - Westminster,2017-07-04,EXP - PURCHASE OF GOODS/SERVICES - RAIL TRAVEL,North 4,REDFERN TRAVEL LTD,1011703391,38.00,WEEK 26 TRAVEL EXPENSES,BD1 5HQ,PROGRAMME
FOOD STANDARDS AGENCY - Westminster,FOOD STANDARDS AGENCY - Westminster,2017-07-11,EXP - PURCHASE OF GOODS/SERVICES - TAXI SERVICES,OPERATIONS ASSURANCE DIVISION (PROGRAMME),REDFERN TRAVEL LTD,1011703451,36.86,WEEK 27 TRAVEL EXPENSES ,BD1 1PL,PROGRAMME
FOOD STANDARDS AGENCY - Westminster,FOOD STANDARDS AGENCY - Westminster,2017-07-04,EXP - PURCHASE OF GOODS/SERVICES - SUBSISTENCE,NON MEAT FIELD OPS,REDFERN TRAVEL LTD,1011703391,34.20,WEEK 26 TRAVEL EXPENSES,BD1 5HQ,PROGRAMME
FOOD STANDARDS AGENCY - Westminster,FOOD STANDARDS AGENCY - Westminster,2017-07-11,EXP - PURCHASE OF GOODS/SERVICES - SUBSISTENCE,Wales and West 3 ,REDFERN TRAVEL LTD,1011703451,33.87,WEEK 27 TRAVEL EXPENSES ,BD1 1PL,PROGRAMME
FOOD STANDARDS AGENCY - Westminster,FOOD STANDARDS AGENCY - Westminster,2017-07-11,EXP - PURCHASE OF GOODS/SERVICES - OTHER TRAVEL,OPERATIONS ASSURANCE DIVISION (PROGRAMME),REDFERN TRAVEL LTD,1011703451,32.00,WEEK 27 TRAVEL EXPENSES ,BD1 1PL,PROGRAMME
FOOD STANDARDS AGENCY - Westminster,FOOD STANDARDS AGENCY - Westminster,2017-07-11,EXP - PURCHASE OF GOODS/SERVICES - TAXI SERVICES,MEAT HYGIENE POLICY,REDFERN TRAVEL LTD,1011703451,30.16,WEEK 27 TRAVEL EXPENSES ,BD1 1PL,ADMIN
FOOD STANDARDS AGENCY - Westminster,FOOD STANDARDS AGENCY - Westminster,2017-07-04,EXP - PURCHASE OF GOODS/SERVICES - RAIL TRAVEL,RESILIENCE ADMIN,REDFERN TRAVEL LTD,1011703391,28.00,WEEK 26 TRAVEL EXPENSES,BD1 5HQ,ADMIN
FOOD STANDARDS AGENCY - Westminster,FOOD STANDARDS AGENCY - Westminster,2017-07-04,EXP - PURCHASE OF GOODS/SERVICES - RAIL TRAVEL,SURVEILLANCE,REDFERN TRAVEL LTD,1011703391,24.00,WEEK 26 TRAVEL EXPENSES,BD1 5HQ,ADMIN
FOOD STANDARDS AGENCY - Westminster,FOOD STANDARDS AGENCY - Westminster,2017-07-11,EXP - PURCHASE OF GOODS/SERVICES - RAIL TRAVEL,North 2,REDFERN TRAVEL LTD,1011703451,22.70,WEEK 27 TRAVEL EXPENSES ,BD1 1PL,PROGRAMME
FOOD STANDARDS AGENCY - Westminster,FOOD STANDARDS AGENCY - Westminster,2017-07-11,EXP - PURCHASE OF GOODS/SERVICES - RAIL TRAVEL,"RADIOLOGICAL, NOVEL FOOD & PROCESSES",REDFERN TRAVEL LTD,1011703451,22.00,WEEK 27 TRAVEL EXPENSES ,BD1 1PL,ADMIN
FOOD STANDARDS AGENCY - Westminster,FOOD STANDARDS AGENCY - Westminster,2017-07-11,EXP - PURCHASE OF GOODS/SERVICES - RAIL TRAVEL,INPORT & EXPORTS TEAM,REDFERN TRAVEL LTD,1011703451,21.60,WEEK 27 TRAVEL EXPENSES ,BD1 1PL,ADMIN
FOOD STANDARDS AGENCY - Westminster,FOOD STANDARDS AGENCY - Westminster,2017-07-11,EXP - PURCHASE OF GOODS/SERVICES - RAIL TRAVEL,MEAT HYGIENE POLICY,REDFERN TRAVEL LTD,1011703451,18.90,WEEK 27 TRAVEL EXPENSES ,BD1 1PL,ADMIN
FOOD STANDARDS AGENCY - Westminster,FOOD STANDARDS AGENCY - Westminster,2017-07-04,EXP - PURCHASE OF GOODS/SERVICES - TAXI SERVICES,CHIEF SCIENTIST  ,REDFERN TRAVEL LTD,1011703391,15.08,WEEK 26 TRAVEL EXPENSES,BD1 5HQ,ADMIN
FOOD STANDARDS AGENCY - Westminster,FOOD STANDARDS AGENCY - Westminster,2017-07-04,EXP - PURCHASE OF GOODS/SERVICES - OTHER TRAVEL,REGULATORY DELIVERY,REDFERN TRAVEL LTD,1011703391,13.30,WEEK 26 TRAVEL EXPENSES,BD1 5HQ,ADMIN
FOOD STANDARDS AGENCY - Westminster,FOOD STANDARDS AGENCY - Westminster,2017-07-11,EXP - PURCHASE OF GOODS/SERVICES - TAXI SERVICES,REGULATORY DELIVERY,REDFERN TRAVEL LTD,1011703451,13.07,WEEK 27 TRAVEL EXPENSES ,BD1 1PL,ADMIN
FOOD STANDARDS AGENCY - Westminster,FOOD STANDARDS AGENCY - Westminster,2017-07-11,EXP - PURCHASE OF GOODS/SERVICES - RAIL TRAVEL,Wales and West 3 ,REDFERN TRAVEL LTD,1011703451,10.60,WEEK 27 TRAVEL EXPENSES ,BD1 1PL,PROGRAMME
FOOD STANDARDS AGENCY - Westminster,FOOD STANDARDS AGENCY - Westminster,2017-07-04,EXP - PURCHASE OF GOODS/SERVICES - TAXI SERVICES,OPERATIONS ASSURANCE DIVISION (PROGRAMME),REDFERN TRAVEL LTD,1011703391,7.02,WEEK 26 TRAVEL EXPENSES,BD1 5HQ,PROGRAMME
FOOD STANDARDS AGENCY - Westminster,FOOD STANDARDS AGENCY - Westminster,2017-07-11,EXP - PURCHASE OF GOODS/SERVICES - SUBSISTENCE,"ANIMAL FEED, TSEs & ABPs",REDFERN TRAVEL LTD,1011703451,1.80,WEEK 27 TRAVEL EXPENSES ,BD1 1PL,ADMIN
FOOD STANDARDS AGENCY - Westminster,FOOD STANDARDS AGENCY - Westminster,2017-07-04,EXP - PURCHASE OF GOODS/SERVICES - SUBSISTENCE,INTERNAL AUDIT,REDFERN TRAVEL LTD,1011703391,1.20,WEEK 26 TRAVEL EXPENSES,BD1 5HQ,ADMIN
FOOD STANDARDS AGENCY - Westminster,FOOD STANDARDS AGENCY - Westminster,2017-07-11,EXP - PURCHASE OF GOODS/SERVICES - FOREIGN SUBSISTENCE,"ANIMAL FEED, TSEs & ABPs",REDFERN TRAVEL LTD,1011703451,1.20,WEEK 27 TRAVEL EXPENSES ,BD1 1PL,ADMIN
FOOD STANDARDS AGENCY - Westminster,FOOD STANDARDS AGENCY - Westminster,2017-07-04,EXP - PURCHASE OF GOODS/SERVICES - FOREIGN SUBSISTENCE,FOOD ADDITIVES,REDFERN TRAVEL LTD,1011703391,0.60,WEEK 26 TRAVEL EXPENSES,BD1 5HQ,ADMIN
FOOD STANDARDS AGENCY - Westminster,FOOD STANDARDS AGENCY - Westminster,2017-07-11,EXP - PURCHASE OF GOODS/SERVICES - SUBSISTENCE,FOOD CRIME UNIT PROG,REDFERN TRAVEL LTD,1011703451,0.60,WEEK 27 TRAVEL EXPENSES ,BD1 1PL,PROGRAMME
FOOD STANDARDS AGENCY - Westminster,FOOD STANDARDS AGENCY - Westminster,2017-07-11,EXP - PURCHASE OF GOODS/SERVICES - SUBSISTENCE,FOOD ADDITIVES,REDFERN TRAVEL LTD,1011703451,0.60,WEEK 27 TRAVEL EXPENSES ,BD1 1PL,ADMIN
FOOD STANDARDS AGENCY - Westminster,FOOD STANDARDS AGENCY - Westminster,2017-07-11,EXP - PURCHASE OF GOODS/SERVICES - FOREIGN SUBSISTENCE,FOOD ADDITIVES,REDFERN TRAVEL LTD,1011703451,0.60,WEEK 27 TRAVEL EXPENSES ,BD1 1PL,ADMIN
FOOD STANDARDS AGENCY - Westminster,FOOD STANDARDS AGENCY - Westminster,2017-07-11,EXP - PURCHASE OF GOODS/SERVICES - FOREIGN SUBSISTENCE,REGULATORY & INTERNATIONAL,REDFERN TRAVEL LTD,1011703451,0.60,WEEK 27 TRAVEL EXPENSES ,BD1 1PL,ADMIN
FOOD STANDARDS AGENCY - Westminster,FOOD STANDARDS AGENCY - Westminster,2017-07-04,EXP - PURCHASE OF GOODS/SERVICES - RAIL TRAVEL,CHIEF EXECUTIVE & PRIVATE OFFICE,REDFERN TRAVEL LTD,1011703391,-18.40,WEEK 26 TRAVEL EXPENSES,BD1 5HQ,ADMIN
FOOD STANDARDS AGENCY - Westminster,FOOD STANDARDS AGENCY - Westminster,2017-07-04,EXP - PURCHASE OF GOODS/SERVICES - SUBSISTENCE,Wales and West 3 ,REDFERN TRAVEL LTD,1011703391,-50.07,WEEK 26 TRAVEL EXPENSES,BD1 5HQ,PROGRAMME
FOOD STANDARDS AGENCY - Westminster,FOOD STANDARDS AGENCY - Westminster,2017-07-11,EXP - PURCHASE OF GOODS/SERVICES - RAIL TRAVEL,NON MEAT FIELD OPS,REDFERN TRAVEL LTD,1011703451,-97.20,WEEK 27 TRAVEL EXPENSES ,BD1 1PL,PROGRAMME
FOOD STANDARDS AGENCY - Westminster,FOOD STANDARDS AGENCY - Westminster,2017-07-11,EXP - PURCHASE OF GOODS/SERVICES - SUBSISTENCE,CHIEF EXECUTIVE & PRIVATE OFFICE,REDFERN TRAVEL LTD,1011703451,-225.73,WEEK 27 TRAVEL EXPENSES ,BD1 1PL,ADMIN
